fUSD/lending_fUSD_20240113
["ID","MTS","AMOUNT","RATE_DAILY","PERIOD"]
[311503189,1705165861185,-2897.77192156,0.00022256,2]
[311503190,1705165861195,-155.53796426,0.00022256,2]
[311503191,1705165861204,-2741.49080404,0.00022256,2]
[311503192,1705165861214,-500.0,0.00022256,2]
[311503193,1705165861224,-500.0,0.00022256,2]
[311503194,1705165861235,-222.04229113,0.00022256,2]
[311503195,1705165861245,-500.0,0.00022256,2]
[311503196,1705165861255,-500.0,0.00022256,2]
[311503197,1705165861265,-500.0,0.00022256,2]
[311503198,1705165861274,-519.62282964,0.00022256,2]
[311503199,1705165861284,-500.0,0.00022256,2]
[311503200,1705165861294,-500.0,0.00022256,2]
[311503201,1705165861305,-500.0,0.00022256,2]
[311503202,1705165861315,-500.0,0.00022256,2]
[311503203,1705165861325,-500.0,0.00022256,2]
[311503204,1705165861336,-500.0,0.00022256,2]
[311503205,1705165861345,-500.0,0.00022256,2]
[311503206,1705165861356,-500.0,0.00022256,2]
[311503207,1705165861365,-500.0,0.00022256,2]
[311503208,1705165861375,-500.0,0.00022256,2]
[311503209,1705165861384,-500.0,0.00022256,2]
[311503210,1705165861394,-500.0,0.00022256,2]
[311503211,1705165861403,-500.0,0.00022256,2]
[311503212,1705165861413,-500.0,0.00022256,2]
[311503213,1705165861422,-500.0,0.00022256,2]
[311503214,1705165861431,-500.0,0.00022256,2]
[311503215,1705165861441,-500.0,0.00022256,2]
[311503216,1705165861450,-500.0,0.00022256,2]
[311503217,1705165861459,-500.0,0.00022256,2]
[311503218,1705165861470,-280.49674116,0.00022256,2]
[311503219,1705165861479,-500.0,0.00022256,2]
[311503220,1705165861489,-500.0,0.00022256,2]
[311503221,1705165861499,-500.0,0.00022256,2]
[311503222,1705165861509,-500.0,0.00022256,2]
[311503223,1705165861519,-500.0,0.00022256,2]
[311503224,1705165861531,-500.0,0.00022256,2]
[311503225,1705165861542,-500.0,0.00022256,2]
[311503226,1705165861552,-500.0,0.00022256,2]
[311503227,1705165861563,-500.0,0.00022256,2]
[311503228,1705165861575,-500.0,0.00022256,2]
[311503229,1705165861585,-500.0,0.00022256,2]
[311503230,1705165861595,-500.0,0.00022256,2]
[311503231,1705165861605,-500.0,0.00022256,2]
[311503232,1705165861618,-500.0,0.00022256,2]
[311503233,1705165861629,-500.0,0.00022256,2]
[311503234,1705165861639,-500.0,0.00022256,2]
[311503235,1705165861650,-500.0,0.00022256,2]
[311503236,1705165861660,-500.0,0.00022256,2]
[311503237,1705165861670,-500.0,0.00022256,2]
[311503238,1705165861681,-500.0,0.00022256,2]
[311503239,1705165861691,-500.0,0.00022256,2]
[311503240,1705165861701,-500.0,0.00022256,2]
[311503241,1705165861711,-500.0,0.00022256,2]
[311503242,1705165861720,-500.0,0.00022256,2]
[311503243,1705165861730,-501.70169313,0.00022256,2]
[311503244,1705165861740,-500.0,0.00022256,2]
[311503245,1705165861750,-500.0,0.00022256,2]
[311503246,1705165861759,-500.0,0.00022256,2]
[311503247,1705165861769,-500.0,0.00022256,2]
[311503248,1705165861779,-500.0,0.00022257,2]
[311503249,1705165861788,-500.0,0.00022257,2]
[311503250,1705165861798,-500.0,0.00022257,2]
[311503251,1705165861809,-500.0,0.00022257,2]
[311503252,1705165861819,-500.0,0.00022257,2]
[311503253,1705165861829,-500.0,0.00022257,2]
[311503254,1705165861838,-500.0,0.00022257,2]
[311503255,1705165861848,-300.0,0.00022257,2]
[311503256,1705165861859,-300.0,0.00022257,2]
[311503257,1705165861868,-192.83329262,0.00022257,2]
[311503258,1705165861879,-500.0,0.00022257,2]
[311503259,1705165861890,-329.97418364,0.00022257,2]
[311503260,1705165861901,-503.85811394,0.00022257,2]
[311503261,1705165861912,-500.0,0.00022257,2]
[311503262,1705165861923,-500.0,0.00022257,2]
[311503263,1705165861933,-252.70115824,0.00022257,2]
[311503264,1705165861943,-2288.37,0.00022257,2]
[311503265,1705165861953,-500.0,0.00022257,2]
[311503266,1705165861964,-500.0,0.00022257,2]
[311503267,1705165861974,-500.0,0.00022257,2]
[311503268,1705165861984,-500.0,0.00022257,2]
[311503269,1705165861995,-931.97,0.00022257,2]
[311503270,1705165862005,-500.0,0.00022257,2]
[311503271,1705165862015,-500.0,0.00022257,2]
[311503272,1705165862025,-682.7,0.00022257,2]
[311503273,1705165862038,-530.28,0.00022257,2]
[311503274,1705165862048,-500.0,0.00022257,2]
[311503275,1705165862059,-208.42472053,0.00022258,2]
[311503276,1705165862068,-500.0,0.00022258,2]
[311503277,1705165862079,-500.0,0.00022258,2]
[311503278,1705165862089,-498.09118748,0.00022258,2]
[311503279,1705165862100,-326.58918329,0.00022258,2]
[311503280,1705165862110,-500.0,0.00022258,2]
[311503281,1705165862120,-500.0,0.00022258,2]
[311503282,1705165862130,-500.0,0.00022258,2]
[311503283,1705165862139,-500.0,0.00022258,2]
[311503284,1705165862150,-500.0,0.00022258,2]
[311503285,1705165862160,-537.01948834,0.00022258,2]
[311503286,1705165862170,-500.0,0.00022258,2]
[311503287,1705165862180,-500.0,0.00022258,2]
[311503288,1705165862190,-500.0,0.00022258,2]
[311503289,1705165862201,-500.0,0.00022258,2]
[311503290,1705165862211,-500.0,0.00022258,2]
[311503291,1705165862220,-500.0,0.00022258,2]
[311503292,1705165862230,-500.0,0.00022258,2]
[311503293,1705165862239,-500.0,0.00022258,2]
[311503294,1705165862250,-500.0,0.00022258,2]
[311503295,1705165862261,-500.0,0.00022258,2]
[311503296,1705165862271,-484.60766067,0.00022258,2]
[311503297,1705165862282,-500.0,0.00022258,2]
[311503298,1705165862291,-500.0,0.00022258,2]
[311503299,1705165862301,-500.0,0.00022258,2]
[311503300,1705165862314,-500.0,0.00022258,2]
[311503301,1705165862325,-500.0,0.00022258,2]
[311503302,1705165862335,-500.0,0.00022258,2]
[311503303,1705165862346,-500.0,0.00022258,2]
[311503304,1705165862356,-500.0,0.00022258,2]
[311503305,1705165862366,-500.0,0.00022258,2]
[311503306,1705165862377,-500.0,0.00022258,2]
[311503307,1705165862386,-500.0,0.00022258,2]
[311503308,1705165862395,-500.0,0.00022258,2]
[311503309,1705165862404,-500.0,0.00022258,2]
[311503310,1705165862415,-500.0,0.00022258,2]
[311503311,1705165862424,-500.0,0.00022258,2]
[311503312,1705165862433,-150.0,0.00022258,2]
[311503313,1705165862443,-500.0,0.00022258,2]
[311503314,1705165862452,-500.0,0.00022258,2]
[311503315,1705165862462,-500.0,0.00022258,2]
[311503316,1705165862471,-500.0,0.00022258,2]
[311503317,1705165862480,-500.0,0.00022258,2]
[311503318,1705165862493,-500.0,0.00022258,2]
[311503319,1705165862504,-500.0,0.00022258,2]
[311503320,1705165862515,-500.0,0.00022258,2]
[311503321,1705165862526,-500.0,0.00022258,2]
[311503322,1705165862540,-500.0,0.00022258,2]
[311503323,1705165862550,-500.0,0.00022258,2]
[311503324,1705165862562,-352.83508129,0.00022258,2]
[311503325,1705165862572,-500.0,0.00022258,2]
[311503326,1705165862583,-500.0,0.00022258,2]
[311503327,1705165862593,-500.0,0.00022258,2]
[311503328,1705165862602,-500.0,0.00022258,2]
[311503329,1705165862612,-500.0,0.00022258,2]
[311503330,1705165862622,-500.0,0.00022258,2]
[311503331,1705165862632,-500.0,0.00022258,2]
[311503332,1705165862642,-500.0,0.00022258,2]
[311503333,1705165862652,-500.0,0.00022258,2]
[311503334,1705165862661,-500.0,0.00022258,2]
[311503335,1705165862671,-627.38268793,0.00022258,2]
[311503336,1705165862681,-500.0,0.00022258,2]
[311503337,1705165862690,-500.0,0.00022258,2]
[311503338,1705165862699,-500.0,0.00022258,2]
[311503339,1705165862709,-500.0,0.00022258,2]
[311503340,1705165862718,-500.0,0.00022258,2]
[311503341,1705165862728,-500.0,0.00022258,2]
[311503342,1705165862738,-500.0,0.00022258,2]
[311503343,1705165862749,-500.0,0.00022258,2]
[311503344,1705165862760,-500.0,0.00022258,2]
[311503345,1705165862771,-500.0,0.00022258,2]
[311503346,1705165862782,-1581.61,0.00022258,2]
[311503347,1705165862792,-500.0,0.00022258,2]
[311503348,1705165862803,-500.0,0.00022258,2]
[311503349,1705165862814,-576.88,0.00022258,2]
[311503350,1705165862824,-500.0,0.00022258,2]
[311503351,1705165862834,-500.0,0.00022259,2]
[311503352,1705165862845,-500.0,0.00022259,2]
[311503353,1705165862856,-510.84876021,0.00022259,2]
[311503354,1705165862866,-500.0,0.00022259,2]
[311503355,1705165862877,-500.0,0.00022259,2]
[311503356,1705165862887,-500.0,0.00022259,2]
[311503357,1705165862897,-537.47,0.00022259,2]
[311503358,1705165862908,-672.33941213,0.0002226,2]
[311503359,1705165862918,-221.15,0.0002227,2]
[311503360,1705165862927,-611691.37896863,0.0002228,2]
[311503361,1705165862937,-153.48,0.00022283,2]
[311503362,1705165862947,-152.92370945,0.0002229,2]
[311503363,1705165862958,-933.56,0.00022298,2]
[311503364,1705165862969,-153.48,0.00022353,2]
[311503365,1705165862979,-152.92370945,0.00022358,2]
[311503366,1705165862988,-672.33941213,0.00022366,2]
[311503367,1705165862998,-221.15,0.00022382,2]
[311503368,1705165863008,-500.0,0.00022385,2]
[311503369,1705165863019,-714.11,0.00022386,2]
[311503370,1705165863030,-338.77699366,0.00022399,2]
[311503371,1705165863039,-1610.33,0.00022399,2]
[311503372,1705165863049,-636.34,0.00022399,2]
[311503373,1705165863061,-517.84,0.00022399,2]
[311503374,1705165863071,-799.13,0.00022399,2]
[311503375,1705165863081,-1953.73,0.00022399,2]
[311503376,1705165863091,-500.0,0.00022399,2]
[311503377,1705165863102,-500.0,0.00022399,2]
[311503378,1705165863112,-2799.53,0.00022399,2]
[311503379,1705165863124,-859.18,0.00022399,2]
[311503380,1705165863135,-500.0,0.00022399,2]
[311503381,1705165863146,-563.6,0.00022399,2]
[311503382,1705165863158,-500.0,0.00022399,2]
[311503383,1705165863170,-2847.83,0.00022399,2]
[311503384,1705165863181,-339.28,0.00022399,2]
[311503385,1705165863192,-500.0,0.00022399,2]
[311503386,1705165863202,-1972.73,0.00022399,2]
[311503387,1705165863213,-515.38,0.00022399,2]
[311503388,1705165863223,-500.0,0.00022399,2]
[311503389,1705165863234,-500.0,0.00022399,2]
[311503390,1705165863244,-500.0,0.00022399,2]
[311503391,1705165863254,-500.0,0.00022399,2]
[311503392,1705165863265,-500.0,0.00022399,2]
[311503393,1705165863275,-500.0,0.00022399,2]
[311503394,1705165863287,-606.27,0.00022399,2]
[311503395,1705165863298,-500.0,0.00022399,2]
[311503396,1705165863309,-500.0,0.00022399,2]
[311503397,1705165863321,-500.0,0.00022399,2]
[311503398,1705165863332,-500.0,0.00022399,5]
[311503399,1705165863345,-654.13,0.00022399,2]
[311503400,1705165863356,-129236.66967931,0.000224,2]
[311503401,1705165863368,-933.56,0.0002241,2]
[311503402,1705165863378,-153.48,0.00022423,2]
[311503403,1705165863388,-152.92370945,0.00022426,2]
[311503404,1705165863398,-672.33941213,0.00022473,2]
[311503405,1705165863408,-500.0,0.0002249,2]
[311503406,1705165863418,-500.0,0.00022491,2]
[311503407,1705165863428,-500.0,0.00022491,2]
[311503408,1705165863438,-439.3264675,0.00022491,2]
[311503409,1705165863448,-153.48,0.00022492,2]
[311503410,1705165863458,-152.92370945,0.00022494,2]
[311503411,1705165863468,-221.15,0.00022494,2]
[311503412,1705165863479,-1525.225971,0.000225,2]
[311503413,1705165863489,-933.56,0.00022522,2]
[311503414,1705165863499,-152.92370945,0.00022561,2]
[311503415,1705165863508,-153.48,0.00022562,2]
[311503416,1705165863518,-672.33941213,0.0002258,2]
[311503417,1705165863527,-221.15,0.00022606,2]
[311503418,1705165863538,-1191.0,0.00022612,2]
[311503419,1705165863549,-500.0,0.00022615,2]
[311503420,1705165863562,-500.0,0.00022615,2]
[311503421,1705165863571,-500.0,0.00022615,2]
[311503422,1705165863581,-500.0,0.00022615,2]
[311503423,1705165863592,-500.0,0.00022615,2]
[311503424,1705165863602,-181.5994819,0.00022615,2]
[311503425,1705165863613,-500.0,0.00022615,2]
[311503426,1705165863623,-500.0,0.00022615,2]
[311503427,1705165863633,-500.0,0.00022615,2]
[311503428,1705165863642,-500.0,0.00022615,2]
[311503429,1705165863651,-500.0,0.00022615,2]
[311503430,1705165863661,-500.0,0.00022615,2]
[311503431,1705165863671,-500.0,0.00022615,2]
[311503432,1705165863681,-500.0,0.00022615,2]
[311503433,1705165863690,-1581.61,0.00022615,2]
[311503434,1705165863700,-500.0,0.00022615,2]
[311503435,1705165863709,-500.0,0.00022615,2]
[311503436,1705165863718,-576.88,0.00022615,2]
[311503437,1705165863728,-500.0,0.00022615,2]
[311503438,1705165863737,-152.92370945,0.00022629,2]
[311503439,1705165863746,-933.56,0.00022634,2]
[311503440,1705165863755,-300.0,0.00022639,2]
[311503441,1705165863765,-672.33941213,0.00022687,2]
[311503442,1705165863775,-152.92370945,0.00022697,2]
[311503443,1705165863784,-306.24,0.000227,2]
[311503444,1705165863794,-221.15,0.00022718,2]
[311503445,1705165863803,-800.0,0.00022743,2]
[311503446,1705165863813,-933.56,0.00022746,2]
[311503447,1705165863823,-152.92370945,0.00022765,2]
[311503448,1705165863832,-150.0,0.00022788,2]
[311503449,1705165863842,-150.0,0.00022788,2]
[311503450,1705165863852,-150.0,0.00022791,2]
[311503451,1705165863862,-672.33941213,0.00022793,2]
[311503452,1705165863871,-150.0,0.00022798,2]
[311503453,1705165863880,-2288.37,0.00022799,2]
[311503454,1705165863890,-500.0,0.00022799,2]
[311503455,1705165863899,-500.0,0.00022799,2]
[311503456,1705165863909,-500.0,0.00022799,2]
[311503457,1705165863918,-931.97,0.00022799,2]
[311503458,1705165863927,-500.0,0.00022799,2]
[311503459,1705165863936,-500.0,0.00022799,2]
[311503460,1705165863946,-682.7,0.00022799,2]
[311503461,1705165863956,-530.28,0.00022799,2]
[311503462,1705165863965,-500.0,0.00022799,2]
[311503463,1705165863975,-32472.0,0.000228,2]
[311503464,1705165863985,-307.40170157,0.00022811,2]
[311503465,1705165863994,-150.0,0.0002282,2]
[311503466,1705165864004,-221.15,0.0002283,2]
[311503467,1705165864014,-150.0,0.00022832,2]
[311503468,1705165864024,-152.92370945,0.00022832,2]
[311503469,1705165864033,-150.0,0.00022833,2]
[311503470,1705165864043,-150.0,0.00022834,2]
[311503471,1705165864052,-150.0,0.00022842,2]
[311503472,1705165864062,-150.0,0.00022845,2]
[311503473,1705165864071,-150.0,0.00022845,2]
[311503474,1705165864081,-161.16,0.00022846,2]
[311503475,1705165864090,-271.48297066,0.00022846,2]
[311503476,1705165864100,-933.56,0.00022858,2]
[311503477,1705165864109,-150.0,0.00022865,2]
[311503478,1705165864118,-150.0,0.00022884,2]
[311503479,1705165864128,-150.0,0.00022888,2]
[311503480,1705165864137,-150.0,0.00022891,2]
[311503481,1705165864147,-300000.0,0.000229,2]
[311503482,1705165864156,-152.92370945,0.000229,2]
[311503483,1705165864166,-494.879,0.00022914,2]
[311503484,1705165864176,-240.038,0.00022914,2]
[311503485,1705165864186,-1931.0,0.00022914,2]
[311503486,1705165864195,-235.0,0.00022914,2]
[311503487,1705165864204,-318.0,0.00022914,2]
[311503488,1705165864214,-507.0,0.00022914,2]
[311503489,1705165864223,-879.0,0.00022914,2]
[311503490,1705165864234,-2902.0,0.00022919,2]
[311503491,1705165864243,-19683.0,0.00022919,2]
[311503492,1705165864252,-2271.0,0.00022919,2]
[311503493,1705165864262,-7343.0,0.00022919,2]
[311503494,1705165864271,-8086.0,0.00022919,2]
[311503495,1705165864281,-150.0,0.00022919,2]
[311503496,1705165864291,-1028.0,0.00022919,2]
[311503497,1705165864300,-150.0,0.00022927,2]
[311503498,1705165864310,-150.0,0.00022936,2]
[311503499,1705165864319,-221.15,0.00022942,2]
[311503500,1705165864329,-933.56,0.00022971,2]
[311503501,1705165864338,-1610.33,0.00022979,2]
[311503502,1705165864348,-636.34,0.00022979,2]
[311503503,1705165864357,-517.84,0.00022979,2]
[311503504,1705165864367,-799.13,0.00022979,2]
[311503505,1705165864376,-1953.73,0.00022979,2]
[311503506,1705165864386,-859.18,0.00022979,2]
[311503507,1705165864396,-429.8,0.00022979,2]
[311503508,1705165864405,-500.0,0.00022979,2]
[311503509,1705165864415,-2847.83,0.00022979,2]
[311503510,1705165864424,-496.11,0.00022979,2]
[311503511,1705165864434,-500.0,0.00022979,2]
[311503512,1705165864444,-500.0,0.00022979,2]
[311503513,1705165864453,-606.27,0.00022979,2]
[311503514,1705165864463,-568.57,0.00022979,2]
[311503515,1705165864473,-654.13,0.00022979,2]
[311503516,1705165864484,-46579.80913797,0.0002298,2]
[311503517,1705165864493,-500.0,0.0002298,2]
[311503518,1705165864503,-500.0,0.0002298,2]
[311503519,1705165864512,-538.51,0.0002298,2]
[311503520,1705165864521,-500.0,0.0002298,2]
[311503521,1705165864531,-500.0,0.0002298,2]
[311503522,1705165864545,-500.0,0.0002298,2]
[311503523,1705165864555,-1610.33,0.0002298,2]
[311503524,1705165864564,-1610.33,0.0002298,2]
[311503525,1705165864574,-2288.37,0.0002298,2]
[311503526,1705165864584,-2288.37,0.0002298,2]
[311503527,1705165864593,-636.34,0.0002298,2]
[311503528,1705165864603,-636.34,0.0002298,2]
[311503529,1705165864613,-500.0,0.0002298,2]
[311503530,1705165864622,-500.0,0.0002298,2]
[311503531,1705165864632,-517.84,0.0002298,2]
[311503532,1705165864642,-517.84,0.0002298,2]
[311503533,1705165864651,-799.13,0.0002298,2]
[311503534,1705165864661,-799.13,0.0002298,2]
[311503535,1705165864670,-500.0,0.0002298,2]
[311503536,1705165864680,-500.0,0.0002298,2]
[311503537,1705165864689,-1581.61,0.0002298,2]
[311503538,1705165864699,-1581.61,0.0002298,2]
[311503539,1705165864709,-500.0,0.0002298,2]
[311503540,1705165864719,-500.0,0.0002298,2]
[311503541,1705165864729,-500.0,0.0002298,2]
[311503542,1705165864738,-594.55880347,0.0002298,2]
[311503543,1705165864748,-500.0,0.0002298,2]
[311503544,1705165864757,-634.91,0.0002298,2]
[311503545,1705165864767,-1953.73,0.0002298,2]
[311503546,1705165864776,-1953.73,0.0002298,2]
[311503547,1705165864785,-931.97,0.0002298,2]
[311503548,1705165864795,-931.97,0.0002298,2]
[311503549,1705165864804,-500.0,0.0002298,2]
[311503550,1705165864814,-213.84,0.0002298,2]
[311503551,1705165864824,-500.0,0.0002298,2]
[311503552,1705165864833,-297.44,0.0002298,2]
[311503553,1705165864843,-500.0,0.0002298,2]
[311503554,1705165864853,-500.0,0.0002298,2]
[311503555,1705165864862,-500.0,0.0002298,2]
[311503556,1705165864871,-500.0,0.0002298,2]
[311503557,1705165864881,-2799.53,0.0002298,2]
[311503558,1705165864891,-2799.53,0.0002298,2]
[311503559,1705165864901,-500.0,0.0002298,2]
[311503560,1705165864913,-500.0,0.0002298,2]
[311503561,1705165864923,-859.18,0.0002298,2]
[311503562,1705165864934,-859.18,0.0002298,2]
[311503563,1705165864944,-576.88,0.0002298,2]
[311503564,1705165864954,-576.88,0.0002298,2]
[311503565,1705165864965,-682.7,0.0002298,2]
[311503566,1705165864974,-682.7,0.0002298,2]
[311503567,1705165864984,-563.6,0.0002298,2]
[311503568,1705165864995,-563.6,0.0002298,2]
[311503569,1705165865005,-530.28,0.0002298,2]
[311503570,1705165865016,-530.28,0.0002298,2]
[311503571,1705165865026,-500.0,0.0002298,2]
[311503572,1705165865037,-2847.83,0.0002298,2]
[311503573,1705165865048,-2847.83,0.0002298,2]
[311503574,1705165865060,-500.0,0.0002298,2]
[311503575,1705165865071,-500.0,0.0002298,2]
[311503576,1705165865081,-1972.73,0.0002298,2]
[311503577,1705165865092,-1972.73,0.0002298,2]
[311503578,1705165865103,-500.0,0.0002298,2]
[311503579,1705165865113,-418.13,0.0002298,2]
[311503580,1705165865124,-500.0,0.0002298,2]
[311503581,1705165865135,-500.0,0.0002298,2]
[311503582,1705165865145,-500.0,0.0002298,2]
[311503583,1705165865406,-500.0,0.0002298,2]
[311503584,1705165865417,-500.0,0.0002298,2]
[311503585,1705165865428,-500.0,0.0002298,2]
[311503586,1705165865438,-606.27,0.0002298,2]
[311503587,1705165865449,-12496.8738378,0.0002298,2]
[311503588,1705165865459,-180.47,0.0002298,2]
[311503589,1705165865470,-500.0,0.0002298,2]
[311503590,1705165865480,-500.0,0.0002298,2]
[311503591,1705165865491,-500.0,0.0002298,5]
[311503592,1705165865501,-500.0,0.0002298,5]
[311503593,1705165865511,-654.13,0.0002298,2]
[311503594,1705165865521,-322573.9087922,0.00022981,2]
[311503595,1705165865532,-110297.8254461,0.00022982,2]
[311503596,1705165865547,-7655.5375049,0.00022982,2]
[311503597,1705165865557,-500.0,0.00022982,2]
[311503598,1705165865567,-2799.53,0.00022982,2]
[311503599,1705165865579,-563.6,0.00022982,2]
[311503600,1705165865590,-500.0,0.00022982,2]
[311503601,1705165865601,-1972.73,0.00022982,2]
[311503602,1705165865611,-500.0,0.00022982,2]
[311503603,1705165865620,-500.0,0.00022982,2]
[311503604,1705165865631,-500.0,0.00022982,2]
[311503605,1705165865642,-606.27,0.00022982,2]
[311503606,1705165865652,-500.0,0.00022982,2]
[311503607,1705165865662,-500.0,0.00022982,5]
[311503608,1705165865674,-654.13,0.00022982,2]
[311503609,1705165865685,-500.0,0.00022983,2]
[311503610,1705165865696,-422.57,0.00022983,2]
[311503611,1705165865706,-1610.33,0.00022983,2]
[311503612,1705165865717,-1610.33,0.00022983,2]
[311503613,1705165865727,-1610.33,0.00022983,2]
[311503614,1705165865738,-2288.37,0.00022983,2]
[311503615,1705165865748,-2288.37,0.00022983,2]
[311503616,1705165865758,-2288.37,0.00022983,2]
[311503617,1705165865769,-636.34,0.00022983,2]
[311503618,1705165865780,-636.34,0.00022983,2]
[311503619,1705165865791,-636.34,0.00022983,2]
[311503620,1705165865802,-500.0,0.00022983,2]
[311503621,1705165865817,-299.8,0.00022983,2]
[311503622,1705165865827,-517.84,0.00022983,2]
[311503623,1705165865837,-517.84,0.00022983,2]
[311503624,1705165865847,-517.84,0.00022983,2]
[311503625,1705165865857,-799.13,0.00022983,2]
[311503626,1705165865867,-799.13,0.00022983,2]
[311503627,1705165865877,-799.13,0.00022983,2]
[311503628,1705165865887,-500.0,0.00022983,2]
[311503629,1705165865897,-500.0,0.00022983,2]
[311503630,1705165865907,-500.0,0.00022983,2]
[311503631,1705165865917,-1581.61,0.00022983,2]
[311503632,1705165865927,-1581.61,0.00022983,2]
[311503633,1705165865937,-1581.61,0.00022983,2]
[311503634,1705165865947,-500.0,0.00022983,2]
[311503635,1705165865957,-500.0,0.00022983,2]
[311503636,1705165865967,-500.0,0.00022983,2]
[311503637,1705165865977,-1953.73,0.00022983,2]
[311503638,1705165865987,-1953.73,0.00022983,2]
[311503639,1705165865997,-1953.73,0.00022983,2]
[311503640,1705165866006,-931.97,0.00022983,2]
[311503641,1705165866016,-931.97,0.00022983,2]
[311503642,1705165866026,-931.97,0.00022983,2]
[311503643,1705165866036,-500.0,0.00022983,2]
[311503644,1705165866046,-500.0,0.00022983,2]
[311503645,1705165866057,-300.25,0.00022983,2]
[311503646,1705165866067,-500.0,0.00022983,2]
[311503647,1705165866077,-500.0,0.00022983,2]
[311503648,1705165866087,-500.0,0.00022983,2]
[311503649,1705165866096,-2799.53,0.00022983,2]
[311503650,1705165866106,-2799.53,0.00022983,2]
[311503651,1705165866115,-2799.53,0.00022983,2]
[311503652,1705165866125,-500.0,0.00022983,2]
[311503653,1705165866135,-500.0,0.00022983,2]
[311503654,1705165866144,-859.18,0.00022983,2]
[311503655,1705165866153,-500.0,0.00022983,2]
[311503656,1705165866163,-859.18,0.00022983,2]
[311503657,1705165866172,-859.18,0.00022983,2]
[311503658,1705165866182,-576.88,0.00022983,2]
[311503659,1705165866191,-576.88,0.00022983,2]
[311503660,1705165866201,-576.88,0.00022983,2]
[311503661,1705165866211,-682.7,0.00022983,2]
[311503662,1705165866221,-682.7,0.00022983,2]
[311503663,1705165866232,-682.7,0.00022983,2]
[311503664,1705165866242,-563.6,0.00022983,2]
[311503665,1705165866252,-563.6,0.00022983,2]
[311503666,1705165866263,-530.28,0.00022983,2]
[311503667,1705165866273,-563.6,0.00022983,2]
[311503668,1705165866283,-530.28,0.00022983,2]
[311503669,1705165866293,-530.28,0.00022983,2]
[311503670,1705165866303,-500.0,0.00022983,2]
[311503671,1705165866315,-500.0,0.00022983,2]
[311503672,1705165866325,-507.16,0.00022983,2]
[311503673,1705165866335,-2847.83,0.00022983,2]
[311503674,1705165866345,-2847.83,0.00022983,2]
[311503675,1705165866356,-2847.83,0.00022983,2]
[311503676,1705165866366,-500.0,0.00022983,2]
[311503677,1705165866376,-500.0,0.00022983,2]
[311503678,1705165866386,-500.0,0.00022983,2]
[311503679,1705165866397,-1972.73,0.00022983,2]
[311503680,1705165866406,-1972.73,0.00022983,2]
[311503681,1705165866416,-1972.73,0.00022983,2]
[311503682,1705165866426,-352.98,0.00022983,2]
[311503683,1705165866436,-500.0,0.00022983,2]
[311503684,1705165866446,-500.0,0.00022983,2]
[311503685,1705165866456,-500.0,0.00022983,2]
[311503686,1705165866466,-500.0,0.00022983,2]
[311503687,1705165866476,-500.0,0.00022983,2]
[311503688,1705165866487,-500.0,0.00022983,2]